Cogmind - Beta 15 @@@ ROGUE MODE // 2025.06.21 @ 02:58:47 Player: Burcsboon Result: Destroyed by P-60 Hacker with Shock Rifle Performance ------------- Evolutions (3) 1500 Regions Visited (8) 1600 Robots Destroyed (47) 235 Value Destroyed (1732) 1732 Prototype IDs (1) 20 Alien Tech Used (0) 0 Bonus (30) 30 TOTAL SCORE: 5117 Bonus ------- Follower Combat Kills 30 Cogmind --------- Core Integrity 0/700 Matter 6/300 Energy 150/150 System Corruption 50% Temperature Cool (0) Movement Core (200) Ox3 Location -7/Factory Parts ------- > --- POWER (2) -------- Micro Nuclear Core > --- PROPULSION (4) --- Cooled VTOL Module > --- UTILITY (4) ------ Coolant Injector Core Analyzer Weapon Cycler > --- WEAPON (3) ------- Gauss Rifle > --- INVENTORY (5) ---- Weight Redist. System Advanced ECM Suite Arc Projector Proton Missile Launcher Proton Missile Launcher Peak State ------------ > --- POWER ------------ Micro Nuclear Core > --- PROPULSION ------- Medium Treads Cooled VTOL Module > --- UTILITY ---------- Coolant Injector Core Analyzer Energy Filter Weapon Cycler > --- WEAPON ----------- Gauss Rifle Proton Missile Launcher > --- INVENTORY -------- Weight Redist. System Advanced ECM Suite Arc Projector [Rating: 38] Favorites ----------- Power Reinforced Ion Engine Engine Reinforced Ion Engine Power Core Micro Nuclear Core Propulsion Light Treads Treads Light Treads Leg Aluminum Leg Wheel Wheel Flight Unit Cooled VTOL Module Utility Hardened Medium Armor Plating Device Heat Sink Storage Small Matter Pod Processor Signal Interpreter Protection Hardened Medium Armor Plating Weapon Light Assault Rifle Energy Gun Beam Rifle Energy Cannon Heavy Particle Cannon Ballistic Gun Light Assault Rifle Launcher Rocket Launcher Build | -11 -10 -10 -10 -9 -8 -7 -7 -7 ------- Run | Yrd Mat Min Exi Min Mat Fac Was Fac Slots Evolved 6 | . . . . . 4 2 . . Power 1 | . . . . . 1 . . . Propulsion 2 | . . . . . 2 . . . Utility 2 | . . . . . 1 1 . . Weapon 1 | . . . . . . 1 . . Parts Attached 57 | 6 5 1 . 4 20 6 . 15 Power 8 | 2 1 . . . 1 2 . 2 Engine 4 | 2 1 . . . 1 . . . Core 4 | . . . . . . 2 . 2 Reactor . | . . . . . . . . . Propulsion 15 | 2 . 1 . 3 5 . . 4 Treads 7 | . . . . 2 4 . . 1 Leg 4 | . . . . 1 1 . . 2 Wheel 3 | 2 . 1 . . . . . . Hover . | . . . . . . . . . Flight 1 | . . . . . . . . 1 Utility 17 | . 3 . . 1 5 3 . 5 Device 9 | . . . . . 3 2 . 4 Storage 2 | . 2 . . . . . . . Processor 2 | . 1 . . . . . . 1 Hackware . | . . . . . . . . . Protection 4 | . . . . 1 2 1 . . Artifact . | . . . . . . . . . Weapon 17 | 2 1 . . . 9 1 . 4 Energy Gun 4 | . . . . . 3 . . 1 Energy Cannon 1 | . . . . . 1 . . . Ballistic Gun 5 | 2 1 . . . 1 . . 1 Ballistic Cannon . | . . . . . . . . . Launcher 7 | . . . . . 4 1 . 2 Special Weapon . | . . . . . . . . . Impact Weapon . | . . . . . . . . . Slashing Weapon . | . . . . . . . . . Piercing Weapon . | . . . . . . . . . Special Melee Weapon . | . . . . . . . . . Unidentified Prototypes 1 | . . . . . . . . 1 Corrupted Parts 3 | . . . . . . . . 3 System Corruption 20 | . . . . . . . . 20 Parts Lost 26 | . 2 . . 4 7 2 5 6 Power 3 | . . . . 1 1 . . 1 Propulsion 8 | . 1 . . 2 2 . 1 2 Utility 7 | . . . . 1 2 2 2 . Weapon 8 | . 1 . . . 2 . 2 3 Highest Loss Streak 5 | . 2 . . 4 2 1 5 3 To Critical Strikes 2 | . . . . . 1 . 1 . Average Backups 4 | 2 4 4 5 4 4 4 4 4 Power . | . 1 1 1 1 . 1 2 . Propulsion . | 1 . . . . . . . . Utility 1 | . 1 2 3 2 1 . 1 2 Weapon 1 | . 1 1 1 1 2 2 1 1 Tool/Special . | . . . . . . . . . Unused Backups 16 | . 2 . . . 3 4 . 7 Power 2 | . . . . . . 2 . . Propulsion 4 | . 2 . . . . 1 . 1 Utility 3 | . . . . . 1 . . 2 Weapon 7 | . . . . . 2 1 . 4 Tool/Special . | . . . . . . . . . Average Slot Usage (%) 77 | . 80 99 100 90 84 94 50 32 Engine 9 | . 14 14 14 11 14 4 . . Core 1 | . . . . . . 5 6 4 Treads 13 | . . . . 18 22 23 11 1 Leg 2 | . . . . . 5 7 3 . Wheel 6 | . 20 27 28 4 . . . . Flight 1 | . . . . . . . . 6 Device 5 | . . . . . 8 6 7 10 Storage 4 | . 9 14 14 14 1 . . . Processor 3 | . 9 14 14 2 . . . 1 Protection 9 | . . . . 9 14 22 8 . Energy Gun 2 | . . . . . 6 3 . . Energy Cannon 1 | . . . . . . 7 3 . Ballistic Gun 11 | . 26 28 28 28 5 7 4 2 Launcher 2 | . . . . . 4 3 3 2 Peak Build Rating 38 | 5 7 7 7 7 21 35 35 38 Average Rating 14 | 3 5 6 7 6 15 28 17 18 On Entrance 9 | . 5 6 7 7 7 19 35 1 Naked Turns 93 | . . . . . . . 93 . Heaviest Build 48 | 8 48 9 9 10 35 45 41 22 Greatest Support 62 | 20 20 20 20 40 62 62 62 28 Greatest Overweight (x) 8 | . 2 . . 2 2 . 8 3 Average Overweight (x) . | . . . . . . . . . Largest Inventory Capacity 20 | 5 20 5 5 5 5 5 5 5 Average Capacity 5 | 5 5 5 5 5 5 5 5 5 Most Carried 5 | 4 5 5 5 5 5 5 4 5 Average Carried 4 | 2 4 4 5 4 4 4 4 4 Final Capacity 5 | 5 5 5 5 5 5 5 5 5 Final Carried 5 | 4 4 5 5 5 5 4 4 5 Class Distribution -------------------- 50% | Mutant 33% | Scavenger-Mutant 16% | Scavenger-Tank Dominant Class ---------------- Mutant | -10/Materials Mutant | -10/Mines Mutant | -10/Exiles Mutant | -9/Mines Scavenger-Mutant | -8/Materials Scavenger-Tank | -7/Factory Scavenger-Tank | -7/Waste Mutant | -7/Factory Resources | -11 -10 -10 -10 -9 -8 -7 -7 -7 ----------- Run | Yrd Mat Min Exi Min Mat Fac Was Fac Matter Collected 1506 | 276 170 53 . 105 516 146 . 240 Remotely . | . . . . . . . . . Salvage Created 1580 | 45 170 . . 131 650 224 . 360 Parts 83 | 3 13 . . 9 25 17 . 16 Haulers Intercepted 1 | . . . . . 1 . . . Recyclers Shooed . | . . . . . . . . . Parts Field Recycled . | . . . . . . . . . Retrieved Matter . | . . . . . . . . . Parts Self-Destructed . | . . . . . . . . . Prevented . | . . . . . . . . . Kills | -11 -10 -10 -10 -9 -8 -7 -7 -7 ------- Run | Yrd Mat Min Exi Min Mat Fac Was Fac Combat Hostiles Destroyed 40 | 1 5 . . 3 15 10 . 6 Guns 18 | 1 5 . . 3 8 . . 1 Cannons 5 | . . . . . . 5 . . AOE 16 | . . . . . 7 5 . 4 Classes Destroyed 10 | 1 1 . . 1 5 1 . 1 Builder 2 | . . . . . . . . 2 Hauler 1 | . . . . . 1 . . . Recycler 1 | . . . . . 1 . . . Watcher 3 | . . . . . 2 1 . . Swarmer 14 | . 1 . . . 4 9 . . Grunt 15 | 1 4 . . 2 4 . . 4 Brawler 1 | . . . . 1 . . . . Sentry 3 | . . . . . 3 . . . Hunter 5 | . . . . . 4 . . 1 Programmer 2 | . . . . . . 1 . 1 Best Kill Streak 7 | 1 1 . . 2 4 7 . 3 Combat Bots Only 6 | 1 1 . . 2 4 6 . 3 Max Kills in Single Turn 3 | 1 1 . . 1 2 3 . 2 Gunslinging . | . . . . . . . . . Exploded 3 | . . . . . 1 3 . 2 Melee . | . . . . . . . . . Uniques/NPCs Destroyed . | . . . . . . . . . Combat | -11 -10 -10 -10 -9 -8 -7 -7 -7 -------- Run | Yrd Mat Min Exi Min Mat Fac Was Fac Hostile Shots Fired 364 | 3 33 . . 30 152 32 6 108 Missed 101 | . 10 . . 7 40 7 . 37 Hits 263 | 3 23 . . 23 112 25 6 71 Melee 8 | . . . . 2 . . 6 . Projectile 255 | 3 23 . . 21 112 25 . 71 Critical Strikes 16 | . 1 . . 1 5 . 3 6 Part Disruptions 1 | . . . . . . . . 1 Damage Taken 3853 | 34 278 . . 301 1336 442 274 1188 Core 1000 | 12 41 . . 78 161 43 177 488 Absorbed by Shields 184 | . . . . . 184 . . . Core Remaining (%) 70 | 95 . . . 47 70 . . . Volleys Fired 194 | 4 39 . . 17 89 11 12 22 Largest 3 | 2 2 . . 2 2 3 3 2 Hottest 145 | 40 40 . . 40 100 145 131 67 Shots Fired 313 | 8 67 . . 33 126 27 28 24 Gun 253 | 8 67 . . 33 105 12 12 16 Cannon 23 | . . . . . . 11 12 . Launcher 37 | . . . . . 21 4 4 8 Special . | . . . . . . . . . Kinetic 159 | 8 67 . . 33 18 11 12 10 Thermal 83 | . . . . . 60 11 12 . Explosive 34 | . . . . . 21 4 4 5 Electromagnetic 37 | . . . . . 27 1 . 9 Robot Hit Streak 13 | 3 6 . . 4 13 5 13 6 Robot Miss Streak 5 | 3 4 . . 3 5 4 4 3 Penetration Max . | . . . . . . . . . Secondary Targets 1 | . 1 . . . . . . . Max Gunslinging Chain 1 | . 1 . . . . . . . Shots Hit Robots 169 | 4 35 . . 16 76 10 19 9 Core Hits 97 | 2 11 . . 6 42 12 5 19 Critical Kills . | . . . . . . . . . Critical Parts Destroyed . | . . . . . . . . . Critical Strikes 4 | . . . . . 4 . . . Burn 3 | . . . . . 3 . . . Corrupt 1 | . . . . . 1 . . . Melee Attacks . | . . . . . . . . . Impact . | . . . . . . . . . Slashing . | . . . . . . . . . Piercing . | . . . . . . . . . Sneak Attacks . | . . . . . . . . . Combat Hostiles . | . . . . . . . . . Follow-up Attacks . | . . . . . . . . . Damage Inflicted 4557 | 34 344 . . 171 1932 602 670 804 Guns 1782 | 34 344 . . 171 1004 39 63 127 Cannons 381 | . . . . . . 156 225 . Explosions 2394 | . . . . . 928 407 382 677 Melee . | . . . . . . . . . Ramming . | . . . . . . . . . Kinetic 901 | 34 344 . . 171 161 7 63 121 Thermal 1029 | . . . . . 648 156 225 . Explosive 1863 | . . . . . 790 407 382 284 Electromagnetic 764 | . . . . . 333 32 . 399 Impact . | . . . . . . . . . Slashing . | . . . . . . . . . Piercing . | . . . . . . . . . Highest Corruption 50 | . . . . 9 . . 21 50 Average Corruption 22 | . . . . 8 . . 11 32 Corruption Purged . | . . . . . . . . . Corruption Blocked . | . . . . . . . . . Effects 62 | . . . . 10 . . 12 40 Message Errors 14 | . . . . 4 . . . 10 Matter Fused 14 | . . . . 2 . . . 12 Heat Flow Errors 6 | . . . . 1 . . 2 3 Energy Discharges 3 | . . . . 1 . . . 2 Parts Rejected 4 | . . . . . . . 2 2 Data Loss (minor) 5 | . . . . 1 . . 2 2 Data Loss (major) 5 | . . . . . . . 3 2 Alerts 2 | . . . . . . . . 2 Misdirections 7 | . . . . . . . 3 4 Weapon Failures 2 | . . . . 1 . . . 1 Overload Shots . | . . . . . . . . . Overflow Damage 29 | . . . . . 2 . . 27 Projectiles . | . . . . . . . . . Explosions 29 | . . . . . 2 . . 27 Melee . | . . . . . . . . . Knockbacks . | . . . . . . . . . Impact . | . . . . . . . . . Kinetic . | . . . . . . . . . Secondary . | . . . . . . . . . Self-Inflicted Damage 248 | . . . . . 100 76 . 72 Shots 9 | . . . . . 3 2 . 4 Rammed . | . . . . . . . . . Targets Rammed . | . . . . . . . . . Kicked . | . . . . . . . . . Crushed . | . . . . . . . . . Highest Temperature 507 | 12 27 . . 211 507 213 382 129 Average Temperature 136 | 7 10 . . 57 156 68 210 45 Received Heat Transfer 738 | 18 150 . . 126 318 . . 126 Effects 24 | . . . . . 18 . 6 . Shutdowns 11 | . . . . . 7 . 4 . Energy Bleed 5 | . . . . . 4 . 1 . Interference 1 | . . . . . 1 . . . Matter Decay 2 | . . . . . 1 . 1 . Short Circuit 1 | . . . . . 1 . . . Damage (minor) 1 | . . . . . 1 . . . Damage (major) 3 | . . . . . 3 . . . Siege Activations . | . . . . . . . . . Martial Activations . | . . . . . . . . . Shielding Activations . | . . . . . . . . . Robots Disrupted . | . . . . . . . . . Combat Hostiles . | . . . . . . . . . Robots Corrupted 1 | . . . . . . . . 1 Combat Hostiles 1 | . . . . . . . . 1 Parts Fried 3 | . . . . . 1 . . 2 Impact Corruptions . | . . . . . . . . . Robots Melted . | . . . . . . . . . Combat Hostiles . | . . . . . . . . . Parts Melted 2 | . . . . . 2 . . . Heat Transferred 2222 | . . . . . 1667 222 333 . Parts Sabotaged . | . . . . . . . . . Parts Stolen . | . . . . . . . . . Parts Stripped . | . . . . . . . . . Power Chain Reactions 3 | . . . . . 3 . . . Alert | -11 -10 -10 -10 -9 -8 -7 -7 -7 ------- Run | Yrd Mat Min Exi Min Mat Fac Was Fac Maximum Alert Level 1 | . . . . . 1 . . 1 Low Security (%) 83 | 100 100 100 . 100 72 100 100 64 Level 1 16 | . . . . . 27 . . 35 Level 2 . | . . . . . . . . . Level 3 . | . . . . . . . . . Level 4 . | . . . . . . . . . Level 5 . | . . . . . . . . . High Security . | . . . . . . . . . Max Security . | . . . . . . . . . Peak Influence 303 | 20 55 9 . 30 303 196 75 274 Initial 124 | . 6 9 . . . 124 65 . Average 80 | 3 18 . . 2 111 100 19 129 Influence Increases 1686 | 20 135 . . 70 677 335 12 437 Destroy 0b10 Robot/C 800 | 20 100 . . 60 300 200 . 120 Destroy 0b10 Robot/NC 35 | . . . . . 20 5 . 10 Destroy Leader 198 | . 20 . . 10 96 42 . 30 Successful Hack 4 | . . . . . 4 . . . Disable Machine 225 | . 15 . . . 45 75 . 90 Destroy Structure 214 | . . . . . 167 13 12 22 Lose Combat Pursuer 210 | . . . . . 45 . . 165 Influence Decreases 1530 | 10 120 25 . 70 402 422 200 281 Entered New Map 294 | . 4 16 . . . 151 123 . Time Decay 1046 | 10 106 9 . 40 352 251 57 221 Lost Part 170 | . 10 . . 30 50 20 . 60 Lost Ally 20 | . . . . . . . 20 . Squads Dispatched 8 | . 1 . . . 3 2 . 2 Investigation 2 | . . . . . 2 . . . Extermination 3 | . . . . . . 1 . 2 Reinforcement 3 | . 1 . . . 1 1 . . Assault . | . . . . . . . . . Garrison . | . . . . . . . . . Intercept . | . . . . . . . . . Searches Triggered . | . . . . . . . . . Construction Impeded . | . . . . . . . . . Haulers Reinforced . | . . . . . . . . . Active Scanning Responses . | . . . . . . . . . Cargo Convoy Interrupts . | . . . . . . . . . Stealth | -11 -10 -10 -10 -9 -8 -7 -7 -7 --------- Run | Yrd Mat Min Exi Min Mat Fac Was Fac Distress Signals 3 | . 1 . . . 1 1 . . Communications Jammed . | . . . . . . . . . Distress Signals . | . . . . . . . . . Times Spotted 76 | 1 14 . . 3 24 12 6 16 Peak Tracking Total 5 | 1 3 . . 3 5 4 5 4 Tactical Retreats 7 | . . . . . 3 . . 4 Traps | -11 -10 -10 -10 -9 -8 -7 -7 -7 ------- Run | Yrd Mat Min Exi Min Mat Fac Was Fac Traps Triggered 4 | . . . . . 3 1 . . Indirectly . | . . . . . . . . . Trap Hack Attempts . | . . . . . . . . . Triggered . | . . . . . . . . . Disarmed . | . . . . . . . . . Reprogrammed . | . . . . . . . . . Reused . | . . . . . . . . . Traps Extracted . | . . . . . . . . . Installed . | . . . . . . . . . Triggered . | . . . . . . . . . Machines | -11 -10 -10 -10 -9 -8 -7 -7 -7 ---------- Run | Yrd Mat Min Exi Min Mat Fac Was Fac Machines Disabled 15 | . 1 . . . 3 5 . 6 Max in Single Turn 4 | . 1 . . . 2 3 . 4 Machines Repaired . | . . . . . . . . . Machines Dismantled . | . . . . . . . . . Machines Sabotaged . | . . . . . . . . . Overloaded Fab Kills . | . . . . . . . . . Hacking | -11 -10 -10 -10 -9 -8 -7 -7 -7 --------- Run | Yrd Mat Min Exi Min Mat Fac Was Fac Machines Accessed 5 | . 1 . 2 . 2 . . . Terminals 3 | . 1 . . . 2 . . . Fabricators . | . . . . . . . . . Repair Stations . | . . . . . . . . . Recycling Units . | . . . . . . . . . Scanalyzers . | . . . . . . . . . Garrison Access . | . . . . . . . . . Total Hacks 23 | . 1 . 14 . 8 . . . Successful 22 | . 1 . 14 . 7 . . . Failed 1 | . . . . . 1 . . . Catastrophic 1 | . . . . . 1 . . . Database Lockouts . | . . . . . . . . . Manual . | . . . . . . . . . Terminals 9 | . 1 . . . 8 . . . Fabricators . | . . . . . . . . . Repair Stations . | . . . . . . . . . Recycling Units . | . . . . . . . . . Scanalyzers . | . . . . . . . . . Garrison Access . | . . . . . . . . . Terminal Hacks 22 | . 1 . 14 . 7 . . . Record 20 | . . . 14 . 6 . . . Locate Traps 1 | . 1 . . . . . . . Investigation Status 1 | . . . . . 1 . . . Fabricator Hacks . | . . . . . . . . . Repair Station Hacks . | . . . . . . . . . Recycling Unit Hacks . | . . . . . . . . . Scanalyzer . | . . . . . . . . . Garrison Access Hacks . | . . . . . . . . . Unauthorized Hacks . | . . . . . . . . . Terminals . | . . . . . . . . . Fabricators . | . . . . . . . . . Repair Stations . | . . . . . . . . . Recycling Units . | . . . . . . . . . Scanalyzers . | . . . . . . . . . Garrison Access . | . . . . . . . . . Data Cores Recovered . | . . . . . . . . . Used . | . . . . . . . . . Hacking Detections 1 | . . . . . 1 . . . Full Trace Events 1 | . . . . . 1 . . . Feedback Events . | . . . . . . . . . Feedback Blocked . | . . . . . . . . . Robot Schematics Acquired . | . . . . . . . . . Robots Built . | . . . . . . . . . Authchips . | . . . . . . . . . Time . | . . . . . . . . . Total Robot Build Rating . | . . . . . . . . . Part Schematics Acquired . | . . . . . . . . . Parts Built . | . . . . . . . . . Authchips . | . . . . . . . . . Time . | . . . . . . . . . Total Part Build Rating . | . . . . . . . . . Parts Repaired . | . . . . . . . . . Time . | . . . . . . . . . Parts Recycled . | . . . . . . . . . Recycled Matter . | . . . . . . . . . Retrieved Matter . | . . . . . . . . . Retrieved Components . | . . . . . . . . . Parts Scanalyzed . | . . . . . . . . . Part Schematics Acquired . | . . . . . . . . . Parts Damaged . | . . . . . . . . . Bothacking | -11 -10 -10 -10 -9 -8 -7 -7 -7 ------------ Run | Yrd Mat Min Exi Min Mat Fac Was Fac Used RIF Installer . | . . . . . . . . . Robots Hacked . | . . . . . . . . . Non-combat . | . . . . . . . . . Combat . | . . . . . . . . . Robot Hacks Applied . | . . . . . . . . . Relay Couplers Released . | . . . . . . . . . Fabnet Peak Effective % . | . . . . . . . . . Robots Rewired . | . . . . . . . . . Allies Hacked . | . . . . . . . . . Hacks Repelled . | . . . . . . . . . Allies | -11 -10 -10 -10 -9 -8 -7 -7 -7 -------- Run | Yrd Mat Min Exi Min Mat Fac Was Fac Total Allies 1 | . . . . . . . 1 . Largest Group 1 | . . . . . . . 1 . Highest-Rated Group 31 | . . . . . . . 31 . Highest-Rated Ally 31 | . . . . . . . 31 . Total Orders . | . . . . . . . . . Ally Attacks 28 | . . . . . . . 28 . Total Damage 397 | . . . . . . . 397 . Kills 1 | . . . . . . . 1 . Allies Corrupted . | . . . . . . . . . Allies Melted . | . . . . . . . . . Intel | -11 -10 -10 -10 -9 -8 -7 -7 -7 ------- Run | Yrd Mat Min Exi Min Mat Fac Was Fac Active Infowar (turns) 158 | . . . . . 154 . . 4 Terrain 154 | . . . . . 154 . . . ECM 4 | . . . . . . . . 4 Robot Analysis Total . | . . . . . . . . . Derelict Logs Recovered 2 | . . 2 . . . . . . Drone Launches . | . . . . . . . . . Drone Recoveries . | . . . . . . . . . Exploration | -11 -10 -10 -10 -9 -8 -7 -7 -7 ------------- Run | Yrd Mat Min Exi Min Mat Fac Was Fac Turns Passed 4496 | 104 307 292 369 361 1503 584 240 736 Spaces Moved 3515 | 96 184 360 462 220 723 344 254 872 Core 340 | 18 . . . 25 . . 196 101 Treads 1305 | . . . . 151 655 344 58 97 Legs 114 | . . . . 3 68 . . 43 Wheels 1125 | 78 184 360 462 41 . . . . Hover . | . . . . . . . . . Flight 631 | . . . . . . . . 631 Fastest Speed 32 | 50 80 80 80 80 155 155 50 32 Average Speed 107 | 74 80 80 80 138 169 155 80 73 Slowest Speed 450 | 80 110 80 80 160 260 155 450 200 Overloaded Moves 129 | . . . . . . . . 129 Propulsion Burnouts . | . . . . . . . . . Robots Hopped . | . . . . . . . . . Potential Cave-ins . | . . . . . . . . . Cave-ins Triggered . | . . . . . . . . . Exploration Rate (%) 43 | 9 31 74 89 36 40 9 89 14 Regions Visited 8 Branch Regions 3 Pre-discovered Areas 2 | . . 2 . . . . . . Known Exits Taken 3 | . 1 1 1 . . . . . Unknown Exits Taken 3 | 1 . . . 1 1 . . . Scrap Searched 3 | . . 2 . 1 . . . . Spaces Dug . | . . . . . . . . . Terrain Destroyed 241 | . . . . . 188 12 20 21 Melee . | . . . . . . . . . Projectile 1 | . . . . . . . 1 . AOE 240 | . . . . . 188 12 19 21 Terrain Rammed . | . . . . . . . . . Walls Destroyed . | . . . . . . . . . Machines Disabled . | . . . . . . . . . Actions | -11 -10 -10 -10 -9 -8 -7 -7 -7 --------- Run | Yrd Mat Min Exi Min Mat Fac Was Fac Total 3934 | 120 284 364 461 247 874 376 265 943 Wait 61 | 6 50 . . . 4 . . 1 Move 3508 | 95 183 359 461 219 722 344 253 872 Hop . | . . . . . . . . . Pick Up 57 | 9 3 3 . 5 16 8 . 13 Fast Attach 26 | . 2 . . . 15 2 . 7 Attach 43 | 5 2 1 . 5 10 4 . 16 Detach 8 | . 1 . . . . . . 7 Swap 6 | 1 1 . . . 3 1 . . Drop 31 | . 3 1 . 1 15 6 . 5 Fire 194 | 4 39 . . 17 89 11 12 22 Melee . | . . . . . . . . . Ram . | . . . . . . . . . Kick . | . . . . . . . . . Crush . | . . . . . . . . . Escape Stasis . | . . . . . . . . . Rewire . | . . . . . . . . . Trap . | . . . . . . . . . Miscellaneous . | . . . . . . . . . Route ------- -11/Scrapyard -10/Materials -10/Mines (discovered 3 exits: *Mat x2 / *Exi) -10/Exiles (discovered 2 exits: *Min x2) -9/Mines -8/Materials -7/Factory -7/Waste -7/Factory History --------- Turn | Location | Event 2 | -11/Scrapyard | Met Revision 17 72 | -11/Scrapyard | Discovered new exit (range 8) 105 | -11/Scrapyard | Entered Materials 217 | -10/Materials | Discovered new exit (range 15) 309 | -10/Materials | Build established: Mutant 364 | -10/Materials | Identified exit to Mines 412 | -10/Materials | Entered Mines 413 | -10/Mines | Learned location of Storage (-7) 498 | -10/Mines | Discovered new exit (range 15) 569 | -10/Mines | Learned Materials garrison access intel 603 | -10/Mines | Discovered new exit (range 5) 607 | -10/Mines | Identified exit to Materials 621 | -10/Mines | Learned location of Zion (-7) 701 | -10/Mines | Deemed a non-threat by the Exiles lab entrance 701 | -10/Mines | Discovered new exit (range 5) 703 | -10/Mines | Identified exit to Exiles 704 | -10/Mines | Entered Exiles 721 | -10/Exiles | Discovered new exit (range 15) 746 | -10/Exiles | Met 8R-AWN 759 | -10/Exiles | Met EX-HEX 789 | -10/Exiles | Met EX-BIN 875 | -10/Exiles | Met EX-DEC 950 | -10/Exiles | Visited The Gauntlet 1061 | -10/Exiles | Discovered new exit (range 14) 1072 | -10/Exiles | Identified exit to Mines 1073 | -10/Exiles | Entered Mines 1155 | -9/Mines | Core integrity fell below 50% 1165 | -9/Mines | Lost 4 parts (1p2n1u) 1426 | -9/Mines | Discovered new exit (range 5) 1434 | -9/Mines | Entered Materials 1434 | -8/Materials | Evolved 4 slots: Power x1, Propulsion x2, Utility x1 1435 | -8/Materials | Loaded intel: 1 garrison access location 1764 | -8/Materials | Build established: Scavenger-Mutant 2792 | -8/Materials | Discovered new exit (range 13) 2937 | -8/Materials | Entered Factory 2937 | -7/Factory | Evolved 2 slots: Utility x1, Weapon x1 3257 | -7/Factory | Build established: Scavenger-Tank 3521 | -7/Factory | Sucked down chute 3521 | -7/Factory | Entered Waste 3522 | -7/Waste | Met a frightened Derelict 3528 | -7/Waste | Spotted C-40 Crusher 3536 | -7/Waste | EMP discharged 3547 | -7/Waste | Spotted C-40 Crusher 3548 | -7/Waste | Allies destroyed C-40 Crusher 3553 | -7/Waste | Spotted C-40 Crusher 3565 | -7/Waste | Spotted C-40 Crusher 3597 | -7/Waste | Spotted C-40 Crusher 3636 | -7/Waste | EMP discharged 3636 | -7/Waste | System corruption reached 10% 3645 | -7/Waste | Crushed by Compactor (1 part destroyed, 2 dropped) 3649 | -7/Waste | Crushed by Compactor (1 part destroyed, 2 dropped) 3657 | -7/Waste | Crushed by Compactor (1 part destroyed, 1 dropped) 3668 | -7/Waste | Crushed by Compactor (1 part destroyed, 1 dropped) 3699 | -7/Waste | Lost 5 parts (1n2u2w) 3706 | -7/Waste | Spotted C-40 Crusher 3736 | -7/Waste | EMP discharged 3738 | -7/Waste | Discovered new exit (range 12) 3761 | -7/Waste | Entered Factory 3974 | -7/Factory | Build established: Mutant 4040 | -7/Factory | Core integrity fell below 50% 4119 | -7/Factory | System corruption reached 30% 4215 | -7/Factory | Core integrity fell below 20% 4226 | -7/Factory | Lost 3 parts (1n2w) 4497 | -7/Factory | Destroyed by P-60 Hacker with Shock Rifle Last Messages --------------- 04445_ System corrupted: Energy Filter rejected. 04455_ K-01 Serf cleans the Neutrino Reactor. 04460_ System corrupted: Substantial component data lost. 04462_ P-60 Hacker resets P-60 Hacker, system corruption cleaned. 04465_ Proton Missile Launcher destroyed. 04474_ R-06 Scavenger collects Energy Filter. 04476_ RD XF0>3ING:TTIVR%VQJF=4WM3U>FC6G,8J 04491_ System corrupted: Matter fused (-5). 04494_ Med. Treads destroyed. [Achievement: Z1$+NX3F=JRE3_ZNQR] Important note for Steam players: Cogmind player global achievement rates displayed by Steam are all significantly underreported, in some cases by a huge margin, due to how they are calculated by Valve. [Achievement: First Step to Greatness] [Achievement: 5k Club] Map ----- +----------------------------------------------------+ | " " " #?????????????????????????????????????????? | | " " " #?????????????????????????????????????????? | | " " " #?????????????????????????????????????????? | | " " " #?????????????????????????????????????????? | | #?????????????????????????????????????????? | | #?????????????????????????????????????????? | | #+##############?????????????????????????????????? | | ????????????????????????????????? | | ????????????????????????????????? | | "?? "?????????????????????????????? | | "?? """???????????????????????????? | | """ """???????????????????????????? | | ########+#### ??????????????????????????? | | ????????????# """ """ ""????????????????????????? | | ????????????# """ """ ""????????????????????????? | | ?????? # """ """ """ ""????????????????????? | | ?????"""""" # ???????????????????? | | ??????"""""?# ???????????????????? | | ??????"""""?# ???????????????????? | | ???????"""??# ##############?????????????????? | | ??????? ??# # #?????????????????? | | ########/#### # p #?????????????????? | | ! # """"p #?????????????????? | | # """" #?????????????????? | | # """" #?????????????????? | | + """" @ #?????????????????? | | # """" #?????????????????? | | # """" #?????????????????? | | %"" # #?????????????????? | | """ # #?????????????????? | | """ # #?????????????????? | | # ! #?????????????????? | | ##############?????????????????? | | #??????????????????????????????? | | #######+######+#####?????????????????????????????? | | # #?????????????????????????????? | | # #?????????????????????????????? | | # #?????????????????????????????? | | # #?????????????????????????????? | | """""" # #?????????????????????????????? | | """""" + #?????????????????????????????? | | """""" #[[/ #?????????????????????????????? | | """""" #[[ #?????????????????????????????? | | #[ #?????????????????????????????? | | ##########?????????????????????????????? | | #??????????????????????????????????????? | | #??????????????????????????????????????? | | ! #??????????????????????????????????????? | | ! #??????????????????????????????????????? | | #??????????????????????????????????????? | +----------------------------------------------------+ Best States ------------- Heat Dissipation 48 Coolant Potential 65 Energy Generation 25 Energy Capacity 290 Matter Stores 350 Matter Capacity 350 Sight Range 16 Terrain Scan Range 14 Terrain Scan Density 10 Armor Coverage 525 Weapon Cycling 15 Evasion (%) 63 Core Analysis 6 Recoil Reduction 3 Energy Filtering 30 Kinecelleration 30 Item Schematics ----------------- None Robot Schematics ------------------ None Fabricated ------------ Nothing Repaired ---------- Nothing Alien Tech Used ----------------- None Achievements -------------- 5k Club Crack Shot First Step to Greatness Let's See Who's Tougher Librarian Loot Pinata Made in Tau Ceti IV One Hack Too Far Oops Power Corrupts Remodeling Risk Taker Storm Trooper System Compromised Tourist Uninvited Guest Z1$+NX3F=JRE3_ZNQR Challenges ------------ None Game ------ Seed TransportControlAutohacker Manual? 0 Play Time 01:59:45 Cumulative 1.9 hours Start 2025.06.19 @ 00:18:50 End 2025.06.21 @ 02:58:47 Sessions 5 Manual Loads 0 Difficulty Rogue Special Mode None Game No. 1 Rogue 1 Adventurer 0 Explorer 0 Win Type - Total 0 Types 0/0/0/0/0/0/0/0/0/0 Lore% 2 Gallery% 3 Achievement% 6 Wizard Run 0 Options --------- Layout 1 ASCII 0 Keyboard 0 Movement Mouse Keybinds 0 Fullscreen 1 Font 32/SmallcapsGlow Map View 50x35 Zoom Use 23% Tactical HUD 1 Map Filters NONE Filters NONE Steam 1 RUN: eb77c73b-c374-496c-8483-0d61b7b64df1